[Event "Titled Tuesday Blitz June 27 Early 2023"]
[White "De La Villa Garcia, Jesus Maria"]
[Black "Oglaza, Oskar"]
[WhiteFideId "2200040"]
[BlackFideId "1194402"]
[WhiteElo "2594"]
[BlackElo "2399"]
[Result "1-0"]
[Round "2"]
[TimeControl "180+2"]
[Date "2023.06.27"]
[WhiteClock "0:01:11"]
[BlackClock "0:00:15"]
[Board "148"]

1. c4 {[%clk 0:02:54]}  c5 {[%clk 0:02:58]} 2. Nf3 {[%clk 0:02:53]}  Nf6 {[%clk 0:02:59]} 3. d4 {[%clk 0:02:54]}  cxd4 {[%clk 0:02:58]} 4. Nxd4 {[%clk 0:02:54]}  e6 {[%clk 0:02:59]} 5. g3 {[%clk 0:02:51]}  Nc6 {[%clk 0:02:59]} 6. Bg2 {[%clk 0:02:51]}  Bc5 {[%clk 0:02:59]} 7. Nb3 {[%clk 0:02:51]}  Bb4+ {[%clk 0:02:58]} 8. Bd2 {[%clk 0:02:48]}  O-O {[%clk 0:02:57]} 9. O-O {[%clk 0:02:47]}  d5 {[%clk 0:02:57]} 10. cxd5 {[%clk 0:02:46]}  Nxd5 {[%clk 0:02:58]} 11. Bxb4 {[%clk 0:02:44]}  Ndxb4 {[%clk 0:02:54]} 12. Nc3 {[%clk 0:02:43]}  Bd7 {[%clk 0:02:47]} 13. Nc5 {[%clk 0:02:36]}  Bc8 {[%clk 0:02:44]} 14. a3 {[%clk 0:02:35]}  Nd5 {[%clk 0:02:41]} 15. Nxd5 {[%clk 0:02:32]}  exd5 {[%clk 0:02:42]} 16. Qxd5 {[%clk 0:02:33]}  Qb6 {[%clk 0:02:43]} 17. b4 {[%clk 0:02:30]}  Rd8 {[%clk 0:02:41]} 18. Qc4 {[%clk 0:02:27]}  Rd4 {[%clk 0:02:40]} 19. Qc3 {[%clk 0:02:27]}  Rd8 {[%clk 0:02:28]} 20. e3 {[%clk 0:02:12]}  a5 {[%clk 0:02:03]} 21. b5 {[%clk 0:02:04]}  Na7 {[%clk 0:01:20]} 22. a4 {[%clk 0:02:02]}  Bf5 {[%clk 0:01:19]} 23. Nxb7 {[%clk 0:02:02]}  Rac8 {[%clk 0:01:18]} 24. Qxa5 {[%clk 0:02:00]}  Qxa5 {[%clk 0:01:16]} 25. Nxa5 {[%clk 0:02:01]}  Bd3 {[%clk 0:01:15]} 26. Rfc1 {[%clk 0:01:59]}  Rb8 {[%clk 0:01:16]} 27. Nc6 {[%clk 0:01:58]}  Nxc6 {[%clk 0:01:16]} 28. bxc6 {[%clk 0:01:59]}  Rdc8 {[%clk 0:01:16]} 29. a5 {[%clk 0:01:54]}  Rc7 {[%clk 0:01:15]} 30. a6 {[%clk 0:01:49]}  Ra8 {[%clk 0:01:13]} 31. Bf1 {[%clk 0:01:48]}  Bxf1 {[%clk 0:01:13]} 32. Kxf1 {[%clk 0:01:48]}  Kf8 {[%clk 0:01:14]} 33. Ke2 {[%clk 0:01:44]}  Ke7 {[%clk 0:01:15]} 34. Kf3 {[%clk 0:01:44]}  Kd6 {[%clk 0:01:14]} 35. Kf4 {[%clk 0:01:40]}  f6 {[%clk 0:01:12]} 36. a7 {[%clk 0:01:39]}  Raxa7 {[%clk 0:01:11]} 37. Rxa7 {[%clk 0:01:40]}  Rxa7 {[%clk 0:01:11]} 38. Kf5 {[%clk 0:01:36]}  Ra5+ {[%clk 0:01:09]} 39. Ke4 {[%clk 0:01:33]}  Ra4+ {[%clk 0:01:08]} 40. Kf5 {[%clk 0:01:33]}  Ke7 {[%clk 0:00:42]} 41. e4 {[%clk 0:01:29]}  g6+ {[%clk 0:00:41]} 42. Kf4 {[%clk 0:01:29]}  Kd8 {[%clk 0:00:40]} 43. c7+ {[%clk 0:01:27]}  Kc8 {[%clk 0:00:40]} 44. Rc6 {[%clk 0:01:27]}  f5 {[%clk 0:00:40]} 45. f3 {[%clk 0:01:26]}  Rb4 {[%clk 0:00:40]} 46. Rf6 {[%clk 0:01:23]}  Kxc7 {[%clk 0:00:32]} 47. Rf7+ {[%clk 0:01:23]}  Kd6 {[%clk 0:00:33]} 48. Rxh7 {[%clk 0:01:23]}  Ke6 {[%clk 0:00:33]} 49. h4 {[%clk 0:01:20]}  Kf6 {[%clk 0:00:32]} 50. Rc7 {[%clk 0:01:20]}  fxe4 {[%clk 0:00:32]} 51. fxe4 {[%clk 0:01:21]}  Rb5 {[%clk 0:00:32]} 52. Rc6+ {[%clk 0:01:21]}  Kf7 {[%clk 0:00:33]} 53. e5 {[%clk 0:01:21]}  Rb3 {[%clk 0:00:33]} 54. g4 {[%clk 0:01:21]}  Rb5 {[%clk 0:00:31]} 55. h5 {[%clk 0:01:17]}  gxh5 {[%clk 0:00:30]} 56. gxh5 {[%clk 0:01:18]}  Rb4+ {[%clk 0:00:29]} 57. Kf5 {[%clk 0:01:18]}  Rh4 {[%clk 0:00:26]} 58. Rc7+ {[%clk 0:01:16]}  Ke8 {[%clk 0:00:26]} 59. Ke6 {[%clk 0:01:16]}  Kd8 {[%clk 0:00:25]} 60. Rh7 {[%clk 0:01:15]}  Rh1 {[%clk 0:00:22]} 61. Rh8+ {[%clk 0:01:14]}  Kc7 {[%clk 0:00:22]} 62. Ke7 {[%clk 0:01:15]}  Kc6 {[%clk 0:00:19]} 63. e6 {[%clk 0:01:15]}  Kd5 {[%clk 0:00:18]} 64. h6 {[%clk 0:01:11]}  Ra1 {[%clk 0:00:18]} 65. Rd8+ {[%clk 0:01:10]}  Ke5 {[%clk 0:00:18]} 66. h7 {[%clk 0:01:10]}  Ra7+ {[%clk 0:00:18]} 67. Rd7 {[%clk 0:01:09]}  Ra8 {[%clk 0:00:18]} 68. Kf7 {[%clk 0:01:09]}  Rh8 {[%clk 0:00:18]} 69. Kg7 {[%clk 0:01:09]}  Kxe6 {[%clk 0:00:15]} 70. Kxh8 {[%clk 0:01:09]}  Kxd7 {[%clk 0:00:15]} 71. Kg7 {[%clk 0:01:10]}  Ke7 {[%clk 0:00:16]} 72. h8=Q {[%clk 0:01:10]}  Ke6 {[%clk 0:00:15]} 73. Qh6+ {[%clk 0:01:11]} 1-0


[Site "https://www.chess.com"]

[Event "Titled Tuesday Blitz June 27 Early 2023"]
[White "Ibadov, Dashgyn"]
[Black "Silva Lucena, Cristian"]
[WhiteFideId "24107514"]
[BlackFideId "2232588"]
[WhiteElo "2588"]
[BlackElo "2390"]
[Result "1-0"]
[Round "2"]
[TimeControl "180+2"]
[Date "2023.06.27"]
[WhiteClock "0:01:51"]
[BlackClock "0:00:37"]
[Board "149"]

1. e4 {[%clk 0:03:00]}  e5 {[%clk 0:02:58]} 2. Nf3 {[%clk 0:03:00]}  Nc6 {[%clk 0:02:58]} 3. Bb5 {[%clk 0:02:59]}  a6 {[%clk 0:02:58]} 4. Ba4 {[%clk 0:02:58]}  Nf6 {[%clk 0:02:58]} 5. d3 {[%clk 0:02:59]}  Bc5 {[%clk 0:02:53]} 6. O-O {[%clk 0:02:56]}  b5 {[%clk 0:02:38]} 7. Bb3 {[%clk 0:02:55]}  O-O {[%clk 0:02:37]} 8. c3 {[%clk 0:02:52]}  h6 {[%clk 0:02:34]} 9. Be3 {[%clk 0:02:48]}  Bxe3 {[%clk 0:02:31]} 10. fxe3 {[%clk 0:02:49]}  d6 {[%clk 0:02:31]} 11. Nbd2 {[%clk 0:02:49]}  Be6 {[%clk 0:02:26]} 12. Qe1 {[%clk 0:02:45]}  Bxb3 {[%clk 0:02:23]} 13. axb3 {[%clk 0:02:46]}  d5 {[%clk 0:02:24]} 14. exd5 {[%clk 0:02:45]}  Qxd5 {[%clk 0:02:24]} 15. d4 {[%clk 0:02:34]}  exd4 {[%clk 0:02:20]} 16. exd4 {[%clk 0:02:34]}  Rfe8 {[%clk 0:02:20]} 17. Qg3 {[%clk 0:02:34]}  Nh5 {[%clk 0:02:06]} 18. Qxc7 {[%clk 0:02:27]}  Re7 {[%clk 0:01:44]} 19. Qb6 {[%clk 0:02:24]}  Re2 {[%clk 0:01:43]} 20. Qc5 {[%clk 0:02:21]}  Qxc5 {[%clk 0:01:26]} 21. dxc5 {[%clk 0:02:22]}  Nf4 {[%clk 0:01:27]} 22. Rf2 {[%clk 0:02:13]}  Rxf2 {[%clk 0:01:25]} 23. Kxf2 {[%clk 0:02:14]}  Nd3+ {[%clk 0:01:25]} 24. Ke3 {[%clk 0:02:05]}  Nxc5 {[%clk 0:01:24]} 25. b4 {[%clk 0:02:04]}  Re8+ {[%clk 0:01:20]} 26. Kf2 {[%clk 0:02:02]}  Nd3+ {[%clk 0:01:16]} 27. Kg3 {[%clk 0:02:03]}  Nxb2 {[%clk 0:01:13]} 28. Rxa6 {[%clk 0:02:03]}  Ne7 {[%clk 0:01:13]} 29. Nd4 {[%clk 0:02:01]}  Nd5 {[%clk 0:01:03]} 30. Nxb5 {[%clk 0:01:59]}  Nxc3 {[%clk 0:01:03]} 31. Nxc3 {[%clk 0:01:53]}  Re3+ {[%clk 0:01:04]} 32. Kf4 {[%clk 0:01:54]}  Rxc3 {[%clk 0:01:04]} 33. b5 {[%clk 0:01:55]}  Rb3 {[%clk 0:00:37]} 34. Nxb3 {[%clk 0:01:51]} 1-0


[Site "https://www.chess.com"]

[Event "Titled Tuesday Blitz June 27 Early 2023"]
[White "Iskusnyh, Sergei"]
[Black "Barbot, Pierre"]
[WhiteFideId "4120027"]
[BlackFideId "663727"]
[WhiteElo "2572"]
[BlackElo "2386"]
[Result "1-0"]
[Round "2"]
[TimeControl "180+2"]
[Date "2023.06.27"]
[WhiteClock "0:00:28"]
[BlackClock "0:00:00"]
[Board "151"]

1. e4 {[%clk 0:03:00]}  c6 {[%clk 0:03:00]} 2. d4 {[%clk 0:02:59]}  d5 {[%clk 0:03:00]} 3. e5 {[%clk 0:02:59]}  c5 {[%clk 0:03:00]} 4. Nf3 {[%clk 0:02:58]}  cxd4 {[%clk 0:03:00]} 5. Qxd4 {[%clk 0:02:59]}  Nc6 {[%clk 0:02:56]} 6. Qf4 {[%clk 0:02:54]}  e6 {[%clk 0:02:49]} 7. Nc3 {[%clk 0:02:48]}  Bc5 {[%clk 0:02:37]} 8. Bd3 {[%clk 0:02:40]}  f5 {[%clk 0:02:05]} 9. a3 {[%clk 0:02:17]}  Nge7 {[%clk 0:02:00]} 10. h4 {[%clk 0:02:05]}  Ng6 {[%clk 0:01:30]} 11. Qg3 {[%clk 0:02:04]}  Qb6 {[%clk 0:01:29]} 12. h5 {[%clk 0:01:52]}  f4 {[%clk 0:01:28]} 13. Bxg6+ {[%clk 0:01:37]}  hxg6 {[%clk 0:01:25]} 14. Qxg6+ {[%clk 0:01:37]}  Kf8 {[%clk 0:01:16]} 15. O-O {[%clk 0:01:18]}  Qc7 {[%clk 0:00:51]} 16. Bxf4 {[%clk 0:01:12]}  Qf7 {[%clk 0:00:46]} 17. Qxf7+ {[%clk 0:01:08]}  Kxf7 {[%clk 0:00:46]} 18. g4 {[%clk 0:01:08]}  Bd7 {[%clk 0:00:37]} 19. b4 {[%clk 0:01:03]}  Bb6 {[%clk 0:00:34]} 20. Nb5 {[%clk 0:01:02]}  Raf8 {[%clk 0:00:30]} 21. Be3 {[%clk 0:00:55]}  Kg8 {[%clk 0:00:16]} 22. Kg2 {[%clk 0:00:47]}  Be8 {[%clk 0:00:05]} 23. Nd6 {[%clk 0:00:45]}  g6 {[%clk 0:00:04]} 24. Bxb6 {[%clk 0:00:44]}  axb6 {[%clk 0:00:03]} 25. Nxe8 {[%clk 0:00:44]}  Rxe8 {[%clk 0:00:04]} 26. hxg6 {[%clk 0:00:45]}  Kg7 {[%clk 0:00:04]} 27. Rh1 {[%clk 0:00:43]}  Kxg6 {[%clk 0:00:04]} 28. Rxh8 {[%clk 0:00:41]}  Rxh8 {[%clk 0:00:04]} 29. Rh1 {[%clk 0:00:42]}  Rf8 {[%clk 0:00:04]} 30. Kg3 {[%clk 0:00:41]}  Rg8 {[%clk 0:00:03]} 31. Rh5 {[%clk 0:00:40]}  Rf8 {[%clk 0:00:01]} 32. Rg5+ {[%clk 0:00:40]}  Kh6 {[%clk 0:00:02]} 33. Rh5+ {[%clk 0:00:40]}  Kg6 {[%clk 0:00:02]} 34. Nh4+ {[%clk 0:00:40]}  Kg7 {[%clk 0:00:02]} 35. f4 {[%clk 0:00:41]}  d4 {[%clk 0:00:02]} 36. f5 {[%clk 0:00:37]}  exf5 {[%clk 0:00:01]} 37. Rxf5 {[%clk 0:00:32]}  Rd8 {[%clk 0:00:01]} 38. e6 {[%clk 0:00:31]}  d3 {[%clk 0:00:01]} 39. cxd3 {[%clk 0:00:29]}  Rxd3+ {[%clk 0:00:01]} 40. Kf4 {[%clk 0:00:29]}  Rd4+ {[%clk 0:00:01]} 41. Kg5 {[%clk 0:00:29]}  Rd3 {[%clk 0:00:01]} 42. Rf7+ {[%clk 0:00:29]}  Kg8 {[%clk 0:00:01]} 43. Nf5 {[%clk 0:00:29]}  Rd1 {[%clk 0:00:00]} 44. Nh6+ {[%clk 0:00:28]} 1-0


[Site "https://www.chess.com"]

[Event "Titled Tuesday Blitz June 27 Early 2023"]
[White "Topalov, Aleksandar"]
[Black "Sebag, Marie"]
[WhiteFideId "925659"]
[BlackFideId "617822"]
[WhiteElo "2381"]
[BlackElo "2566"]
[Result "1-0"]
[Round "2"]
[TimeControl "180+2"]
[Date "2023.06.27"]
[WhiteClock "0:00:03"]
[BlackClock "0:00:00"]
[Board "152"]

1. b3 {[%clk 0:03:00]}  e5 {[%clk 0:02:56]} 2. Bb2 {[%clk 0:03:00]}  Nc6 {[%clk 0:02:50]} 3. c4 {[%clk 0:03:00]}  Bc5 {[%clk 0:02:47]} 4. e3 {[%clk 0:03:00]}  d6 {[%clk 0:02:47]} 5. Nf3 {[%clk 0:02:59]}  f5 {[%clk 0:02:45]} 6. a3 {[%clk 0:02:59]}  Qe7 {[%clk 0:02:35]} 7. d4 {[%clk 0:02:56]}  exd4 {[%clk 0:02:34]} 8. Nxd4 {[%clk 0:02:56]}  Nxd4 {[%clk 0:02:34]} 9. Bxd4 {[%clk 0:02:55]}  Bxd4 {[%clk 0:02:34]} 10. Qxd4 {[%clk 0:02:54]}  Nf6 {[%clk 0:02:34]} 11. Nc3 {[%clk 0:02:54]}  O-O {[%clk 0:02:34]} 12. Be2 {[%clk 0:02:51]}  Bd7 {[%clk 0:02:34]} 13. O-O {[%clk 0:02:45]}  Rae8 {[%clk 0:02:33]} 14. Bf3 {[%clk 0:02:40]}  b6 {[%clk 0:02:30]} 15. g3 {[%clk 0:02:35]}  Ne4 {[%clk 0:02:26]} 16. Nd5 {[%clk 0:02:23]}  Qd8 {[%clk 0:02:24]} 17. Rad1 {[%clk 0:02:12]}  Be6 {[%clk 0:02:08]} 18. Bg2 {[%clk 0:02:06]}  Bf7 {[%clk 0:02:00]} 19. f3 {[%clk 0:01:51]}  Ng5 {[%clk 0:01:59]} 20. Rfe1 {[%clk 0:01:44]}  Ne6 {[%clk 0:01:57]} 21. Qc3 {[%clk 0:01:38]}  c6 {[%clk 0:01:52]} 22. Nb4 {[%clk 0:01:34]}  Qc7 {[%clk 0:01:49]} 23. f4 {[%clk 0:01:32]}  Nd8 {[%clk 0:01:44]} 24. e4 {[%clk 0:01:31]}  a5 {[%clk 0:01:40]} 25. Nd3 {[%clk 0:01:26]}  fxe4 {[%clk 0:01:28]} 26. Bxe4 {[%clk 0:01:25]}  Re7 {[%clk 0:01:23]} 27. Bf3 {[%clk 0:01:21]}  Rfe8 {[%clk 0:01:23]} 28. Rxe7 {[%clk 0:01:20]}  Rxe7 {[%clk 0:01:21]} 29. Re1 {[%clk 0:01:20]}  Bg6 {[%clk 0:01:19]} 30. Rxe7 {[%clk 0:01:12]}  Qxe7 {[%clk 0:01:18]} 31. Qe1 {[%clk 0:01:09]}  Kf8 {[%clk 0:01:12]} 32. Qd2 {[%clk 0:00:58]}  Be4 {[%clk 0:00:59]} 33. Bg4 {[%clk 0:00:44]}  Nf7 {[%clk 0:00:35]} 34. Nf2 {[%clk 0:00:42]}  d5 {[%clk 0:00:31]} 35. cxd5 {[%clk 0:00:40]}  Bxd5 {[%clk 0:00:30]} 36. b4 {[%clk 0:00:37]}  axb4 {[%clk 0:00:30]} 37. axb4 {[%clk 0:00:37]}  Qa7 {[%clk 0:00:24]} 38. Qb2 {[%clk 0:00:27]}  Qa4 {[%clk 0:00:21]} 39. h3 {[%clk 0:00:24]}  h6 {[%clk 0:00:19]} 40. Kh2 {[%clk 0:00:23]}  Qb5 {[%clk 0:00:17]} 41. Qd4 {[%clk 0:00:19]}  Qf1 {[%clk 0:00:15]} 42. Ne4 {[%clk 0:00:15]}  Nd6 {[%clk 0:00:12]} 43. Qf2 {[%clk 0:00:11]}  Qxf2+ {[%clk 0:00:11]} 44. Nxf2 {[%clk 0:00:11]}  c5 {[%clk 0:00:10]} 45. bxc5 {[%clk 0:00:11]}  bxc5 {[%clk 0:00:11]} 46. Nd3 {[%clk 0:00:10]}  c4 {[%clk 0:00:11]} 47. Nb4 {[%clk 0:00:10]}  Be4 {[%clk 0:00:12]} 48. Bd1 {[%clk 0:00:09]}  c3 {[%clk 0:00:12]} 49. Bc2 {[%clk 0:00:10]}  Bb7 {[%clk 0:00:10]} 50. Kg1 {[%clk 0:00:10]}  Nb5 {[%clk 0:00:10]} 51. Kf2 {[%clk 0:00:10]}  Nd4 {[%clk 0:00:10]} 52. Ke3 {[%clk 0:00:09]}  Nxc2+ {[%clk 0:00:10]} 53. Nxc2 {[%clk 0:00:09]}  Bg2 {[%clk 0:00:10]} 54. h4 {[%clk 0:00:08]}  Bh3 {[%clk 0:00:09]} 55. Kd4 {[%clk 0:00:08]}  Ke7 {[%clk 0:00:09]} 56. Kxc3 {[%clk 0:00:08]}  Kf6 {[%clk 0:00:09]} 57. Ne3 {[%clk 0:00:09]}  g5 {[%clk 0:00:10]} 58. hxg5+ {[%clk 0:00:08]}  hxg5 {[%clk 0:00:08]} 59. Kd4 {[%clk 0:00:07]}  gxf4 {[%clk 0:00:08]} 60. gxf4 {[%clk 0:00:07]}  Be6 {[%clk 0:00:07]} 61. Ke4 {[%clk 0:00:06]}  Bd7 {[%clk 0:00:06]} 62. Nd5+ {[%clk 0:00:06]}  Kf7 {[%clk 0:00:06]} 63. Ke5 {[%clk 0:00:06]}  Bc8 {[%clk 0:00:06]} 64. Nb6 {[%clk 0:00:06]}  Bh3 {[%clk 0:00:03]} 65. Nd5 {[%clk 0:00:05]}  Bg4 {[%clk 0:00:04]} 66. Ne3 {[%clk 0:00:05]}  Bh3 {[%clk 0:00:04]} 67. Nf5 {[%clk 0:00:05]}  Kf8 {[%clk 0:00:02]} 68. Kf6 {[%clk 0:00:05]}  Bg4 {[%clk 0:00:01]} 69. Ne7 {[%clk 0:00:05]}  Bh3 {[%clk 0:00:02]} 70. Ng6+ {[%clk 0:00:05]}  Ke8 {[%clk 0:00:02]} 71. Ne5 {[%clk 0:00:04]}  Bc8 {[%clk 0:00:02]} 72. Nc6 {[%clk 0:00:03]}  Bh3 {[%clk 0:00:03]} 73. Nd4 {[%clk 0:00:03]}  Bc8 {[%clk 0:00:03]} 74. Ne6 {[%clk 0:00:03]}  Ba6 {[%clk 0:00:03]} 75. Ke5 {[%clk 0:00:03]}  Bd3 {[%clk 0:00:03]} 76. Kf6 {[%clk 0:00:03]}  Bb1 {[%clk 0:00:00]} 77. Nc7+ {[%clk 0:00:03]} 1-0


[Site "https://www.chess.com"]

[Event "Titled Tuesday Blitz June 27 Early 2023"]
[White "Salman, Pavel"]
[Black "Fontaine, Quentin"]
[WhiteFideId "24153753"]
[BlackFideId "230804"]
[WhiteElo "2553"]
[BlackElo "2379"]
[Result "1-0"]
[Round "2"]
[TimeControl "180+2"]
[Date "2023.06.27"]
[WhiteClock "0:01:56"]
[BlackClock "0:00:22"]
[Board "154"]

1. d4 {[%clk 0:02:49]}  d6 {[%clk 0:02:58]} 2. Nc3 {[%clk 0:02:49]}  Nf6 {[%clk 0:02:57]} 3. e4 {[%clk 0:02:49]}  g6 {[%clk 0:02:57]} 4. h4 {[%clk 0:02:50]}  h5 {[%clk 0:02:41]} 5. Bg5 {[%clk 0:02:49]}  Bg7 {[%clk 0:02:32]} 6. f4 {[%clk 0:02:49]}  Ng4 {[%clk 0:02:30]} 7. e5 {[%clk 0:02:38]}  f6 {[%clk 0:02:00]} 8. Bd3 {[%clk 0:02:37]}  Bf5 {[%clk 0:01:53]} 9. Bxf5 {[%clk 0:02:35]}  gxf5 {[%clk 0:01:53]} 10. exf6 {[%clk 0:02:36]}  exf6 {[%clk 0:01:53]} 11. Qe2+ {[%clk 0:02:33]}  Qe7 {[%clk 0:01:38]} 12. Nd5 {[%clk 0:02:33]}  Qxe2+ {[%clk 0:01:35]} 13. Nxe2 {[%clk 0:02:34]}  Kd7 {[%clk 0:01:33]} 14. Ng3 {[%clk 0:02:33]}  fxg5 {[%clk 0:01:32]} 15. Nxf5 {[%clk 0:02:33]}  c6 {[%clk 0:01:08]} 16. Nc3 {[%clk 0:02:33]}  Bf8 {[%clk 0:00:50]} 17. hxg5 {[%clk 0:02:32]}  Na6 {[%clk 0:00:48]} 18. Kd2 {[%clk 0:02:27]}  d5 {[%clk 0:00:48]} 19. Rae1 {[%clk 0:02:24]}  Bd6 {[%clk 0:00:46]} 20. g6 {[%clk 0:02:18]}  Rag8 {[%clk 0:00:42]} 21. g7 {[%clk 0:02:15]}  Rh7 {[%clk 0:00:42]} 22. g3 {[%clk 0:02:11]}  Bb4 {[%clk 0:00:38]} 23. a3 {[%clk 0:02:10]}  Bxc3+ {[%clk 0:00:38]} 24. bxc3 {[%clk 0:02:04]}  Nc7 {[%clk 0:00:36]} 25. Re7+ {[%clk 0:02:03]}  Kd8 {[%clk 0:00:34]} 26. Rhe1 {[%clk 0:02:01]}  Nf6 {[%clk 0:00:30]} 27. Rf7 {[%clk 0:01:58]}  Ne4+ {[%clk 0:00:30]} 28. Rxe4 {[%clk 0:01:58]}  dxe4 {[%clk 0:00:30]} 29. Rf8+ {[%clk 0:01:58]}  Kd7 {[%clk 0:00:25]} 30. Rxg8 {[%clk 0:01:58]}  Ke6 {[%clk 0:00:22]} 31. Re8+ {[%clk 0:01:56]} 1-0


[Site "https://www.chess.com"]

[Event "Titled Tuesday Blitz June 27 Early 2023"]
[White "Alvarado Diaz, Alejandro"]
[Black "Fernandez Siles, Luis"]
[WhiteFideId "2276119"]
[BlackFideId "2209420"]
[WhiteElo "2549"]
[BlackElo "2367"]
[Result "1-0"]
[Round "2"]
[TimeControl "180+2"]
[Date "2023.06.27"]
[WhiteClock "0:00:03"]
[BlackClock "0:00:09"]
[Board "157"]

1. d4 {[%clk 0:03:00]}  Nf6 {[%clk 0:02:59]} 2. c4 {[%clk 0:03:00]}  g6 {[%clk 0:02:59]} 3. Nc3 {[%clk 0:03:00]}  Bg7 {[%clk 0:02:59]} 4. e4 {[%clk 0:03:00]}  d6 {[%clk 0:02:59]} 5. Be2 {[%clk 0:02:56]}  O-O {[%clk 0:02:59]} 6. Be3 {[%clk 0:02:55]}  Nbd7 {[%clk 0:02:59]} 7. h4 {[%clk 0:02:55]}  e5 {[%clk 0:02:57]} 8. d5 {[%clk 0:02:54]}  h5 {[%clk 0:02:54]} 9. Qd2 {[%clk 0:02:36]}  Nc5 {[%clk 0:02:50]} 10. f3 {[%clk 0:02:34]}  a5 {[%clk 0:02:47]} 11. Nh3 {[%clk 0:02:16]}  c6 {[%clk 0:02:39]} 12. Ng5 {[%clk 0:01:27]}  cxd5 {[%clk 0:02:38]} 13. cxd5 {[%clk 0:01:00]}  Bd7 {[%clk 0:02:30]} 14. O-O-O {[%clk 0:00:49]}  a4 {[%clk 0:02:30]} 15. g4 {[%clk 0:00:34]}  hxg4 {[%clk 0:02:18]} 16. fxg4 {[%clk 0:00:35]}  Bxg4 {[%clk 0:02:17]} 17. Bxg4 {[%clk 0:00:33]}  Nxg4 {[%clk 0:02:17]} 18. h5 {[%clk 0:00:32]}  Nxe3 {[%clk 0:02:13]} 19. Qxe3 {[%clk 0:00:33]}  Bh6 {[%clk 0:01:40]} 20. Rdg1 {[%clk 0:00:32]}  f6 {[%clk 0:01:22]} 21. hxg6 {[%clk 0:00:20]}  Bxg5 {[%clk 0:01:18]} 22. Rxg5 {[%clk 0:00:19]}  fxg5 {[%clk 0:01:17]} 23. Qh3 {[%clk 0:00:20]}  Nd3+ {[%clk 0:00:26]} 24. Kb1 {[%clk 0:00:16]}  Kg7 {[%clk 0:00:22]} 25. Qh7+ {[%clk 0:00:14]}  Kf6 {[%clk 0:00:22]} 26. g7 {[%clk 0:00:12]}  Rg8 {[%clk 0:00:17]} 27. Rh6+ {[%clk 0:00:12]}  Ke7 {[%clk 0:00:17]} 28. Qg6 {[%clk 0:00:11]}  Nf4 {[%clk 0:00:13]} 29. Qf6+ {[%clk 0:00:09]}  Kd7 {[%clk 0:00:13]} 30. Qxd6+ {[%clk 0:00:08]}  Kc8 {[%clk 0:00:14]} 31. Qc5+ {[%clk 0:00:06]}  Kb8 {[%clk 0:00:14]} 32. Nb5 {[%clk 0:00:05]}  Rxg7 {[%clk 0:00:14]} 33. Rd6 {[%clk 0:00:03]}  Rd7 {[%clk 0:00:14]} 34. Rxd7 {[%clk 0:00:02]}  Qxd7 {[%clk 0:00:13]} 35. Qf8+ {[%clk 0:00:03]}  Qc8 {[%clk 0:00:13]} 36. Qd6+ {[%clk 0:00:03]}  Qc7 {[%clk 0:00:09]} 37. Qxc7# {[%clk 0:00:03]} 1-0


[Site "https://www.chess.com"]

[Event "Titled Tuesday Blitz June 27 Early 2023"]
[White "Tologon tegin, Semetei"]
[Black "Melikhov, Evgeny V."]
[WhiteFideId "13800574"]
[BlackFideId "4122046"]
[WhiteElo "2548"]
[BlackElo "2366"]
[Result "1-0"]
[Round "2"]
[TimeControl "180+2"]
[Date "2023.06.27"]
[WhiteClock "0:00:08"]
[BlackClock "0:00:00"]
[Board "158"]

1. g3 {[%clk 0:02:32]}  f5 {[%clk 0:02:58]} 2. Bg2 {[%clk 0:02:30]}  Nf6 {[%clk 0:02:57]} 3. c4 {[%clk 0:02:29]}  d6 {[%clk 0:02:56]} 4. Nc3 {[%clk 0:02:27]}  e5 {[%clk 0:02:56]} 5. e3 {[%clk 0:02:27]}  Be7 {[%clk 0:02:54]} 6. Nge2 {[%clk 0:02:26]}  O-O {[%clk 0:02:54]} 7. O-O {[%clk 0:02:27]}  a5 {[%clk 0:02:54]} 8. d4 {[%clk 0:02:26]}  e4 {[%clk 0:02:53]} 9. d5 {[%clk 0:02:21]}  Na6 {[%clk 0:02:48]} 10. f3 {[%clk 0:02:19]}  exf3 {[%clk 0:02:45]} 11. Bxf3 {[%clk 0:02:19]}  Nc5 {[%clk 0:02:34]} 12. Nd4 {[%clk 0:02:11]}  Bd7 {[%clk 0:02:21]} 13. Qc2 {[%clk 0:02:11]}  Ng4 {[%clk 0:01:29]} 14. Bxg4 {[%clk 0:01:36]}  fxg4 {[%clk 0:01:29]} 15. Bd2 {[%clk 0:01:36]}  Bf6 {[%clk 0:01:15]} 16. Nb3 {[%clk 0:01:22]}  Nxb3 {[%clk 0:01:09]} 17. axb3 {[%clk 0:01:21]}  Qe7 {[%clk 0:01:08]} 18. Ne4 {[%clk 0:01:07]}  Be5 {[%clk 0:01:05]} 19. Nc3 {[%clk 0:00:35]}  b6 {[%clk 0:01:01]} 20. Qd3 {[%clk 0:00:28]}  Rae8 {[%clk 0:00:57]} 21. Rxf8+ {[%clk 0:00:24]}  Rxf8 {[%clk 0:00:57]} 22. Rf1 {[%clk 0:00:25]}  Rxf1+ {[%clk 0:00:51]} 23. Kxf1 {[%clk 0:00:26]}  Qf6+ {[%clk 0:00:50]} 24. Kg1 {[%clk 0:00:26]}  Bf5 {[%clk 0:00:48]} 25. Qf1 {[%clk 0:00:25]}  Qg6 {[%clk 0:00:45]} 26. Nb5 {[%clk 0:00:19]}  Bd3 {[%clk 0:00:38]} 27. Qf2 {[%clk 0:00:17]}  Be4 {[%clk 0:00:36]} 28. Nxc7 {[%clk 0:00:17]}  Bf3 {[%clk 0:00:36]} 29. Ne6 {[%clk 0:00:17]}  Qb1+ {[%clk 0:00:34]} 30. Be1 {[%clk 0:00:17]}  Bxb2 {[%clk 0:00:28]} 31. Ng5 {[%clk 0:00:17]}  Bc3 {[%clk 0:00:28]} 32. Nxf3 {[%clk 0:00:17]}  gxf3 {[%clk 0:00:28]} 33. Kf1 {[%clk 0:00:18]}  g5 {[%clk 0:00:24]} 34. g4 {[%clk 0:00:18]}  Kg7 {[%clk 0:00:21]} 35. h3 {[%clk 0:00:18]}  Kg6 {[%clk 0:00:20]} 36. e4 {[%clk 0:00:15]}  Qa1 {[%clk 0:00:13]} 37. Qe3 {[%clk 0:00:14]}  Bxe1 {[%clk 0:00:08]} 38. Qxe1 {[%clk 0:00:15]}  Qb2 {[%clk 0:00:08]} 39. Qf2 {[%clk 0:00:14]}  Qxb3 {[%clk 0:00:08]} 40. Kg1 {[%clk 0:00:12]}  Qd3 {[%clk 0:00:08]} 41. Kh2 {[%clk 0:00:11]}  Qe2 {[%clk 0:00:08]} 42. Kg3 {[%clk 0:00:10]}  Kf6 {[%clk 0:00:06]} 43. Qd4+ {[%clk 0:00:09]}  Ke7 {[%clk 0:00:06]} 44. Qg7+ {[%clk 0:00:09]}  Kd8 {[%clk 0:00:06]} 45. Qf8+ {[%clk 0:00:09]}  Kc7 {[%clk 0:00:06]} 46. Qe7+ {[%clk 0:00:10]}  Kc8 {[%clk 0:00:06]} 47. Qe8+ {[%clk 0:00:10]}  Kc7 {[%clk 0:00:06]} 48. Qc6+ {[%clk 0:00:10]}  Kd8 {[%clk 0:00:07]} 49. Qxd6+ {[%clk 0:00:11]}  Kc8 {[%clk 0:00:07]} 50. Qc6+ {[%clk 0:00:11]}  Kd8 {[%clk 0:00:07]} 51. Qxb6+ {[%clk 0:00:11]}  Kc8 {[%clk 0:00:07]} 52. Qc6+ {[%clk 0:00:11]}  Kd8 {[%clk 0:00:07]} 53. Qb6+ {[%clk 0:00:11]}  Kc8 {[%clk 0:00:07]} 54. Qa6+ {[%clk 0:00:12]}  Kd7 {[%clk 0:00:06]} 55. Qb7+ {[%clk 0:00:11]}  Kd8 {[%clk 0:00:06]} 56. Qa8+ {[%clk 0:00:11]}  Kd7 {[%clk 0:00:06]} 57. Qa7+ {[%clk 0:00:11]}  Kc8 {[%clk 0:00:05]} 58. Qa6+ {[%clk 0:00:11]}  Kd7 {[%clk 0:00:05]} 59. Qc6+ {[%clk 0:00:11]}  Kd8 {[%clk 0:00:05]} 60. Qf6+ {[%clk 0:00:11]}  Kc8 {[%clk 0:00:05]} 61. Qf8+ {[%clk 0:00:11]}  Kb7 {[%clk 0:00:05]} 62. Qxf3 {[%clk 0:00:11]}  Qxc4 {[%clk 0:00:04]} 63. e5 {[%clk 0:00:10]}  a4 {[%clk 0:00:02]} 64. d6+ {[%clk 0:00:10]}  Qc6 {[%clk 0:00:02]} 65. Qf7+ {[%clk 0:00:08]}  Ka6 {[%clk 0:00:00]} 66. d7 {[%clk 0:00:08]} 1-0


[Site "https://www.chess.com"]